fUSD/lending_fUSD_20240408
["ID","MTS","AMOUNT","RATE_DAILY","PERIOD"]
[321852721,1712565107347,-8271.04258511,0.00020977,4]
[321852722,1712565107367,-485.43,0.0002099,3]
[321852723,1712565107387,-4572.46475471,0.00020996,2]
[321852724,1712565107408,-4663.73835243,0.00020997,2]
[321852725,1712565107429,-295.3755045,0.00020997,2]
[321852726,1712565107449,-155.0,0.00020998,2]
[321852727,1712565107694,-183.92361478,0.00020998,2]
[321852728,1712565107721,-512.94271155,0.00020998,2]
[321852729,1712565107743,-500.0,0.00020998,2]
[321852730,1712565107765,-150.78970675,0.00020998,2]
[321852731,1712565107788,-513.79598978,0.00020998,2]
[321852732,1712565107809,-207.17268662,0.00020998,2]
[321852733,1712565107830,-511.51007351,0.00020998,2]
[321852734,1712565107851,-218.85703448,0.00020998,2]
[321852735,1712565107871,-511.10668903,0.00020998,2]
[321852736,1712565107894,-155.71630567,0.00020998,2]
[321852737,1712565107916,-500.0,0.00020998,2]
[321852738,1712565107938,-166.88650538,0.00020998,2]
[321852739,1712565107964,-1491.18191188,0.00020998,2]
[321852740,1712565107986,-500.0,0.00020998,2]
[321852741,1712565108007,-561.43,0.00020998,2]
[321852742,1712565108027,-500.0,0.00020998,2]
[321852743,1712565108047,-500.0,0.00020998,2]
[321852744,1712565108067,-217.91374955,0.00020998,2]
[321852745,1712565108089,-170.81269715,0.00020998,2]
[321852746,1712565108110,-500.0,0.00020998,2]
[321852747,1712565108131,-500.0,0.00020998,2]
[321852748,1712565108152,-500.0,0.00020998,2]
[321852749,1712565108173,-500.0,0.00020998,2]
[321852750,1712565108193,-505.3498709,0.00020998,2]
[321852751,1712565108218,-238.17944664,0.00020998,2]
[321852752,1712565108238,-500.0,0.00020998,2]
[321852753,1712565108260,-500.0,0.00020998,2]
[321852754,1712565108283,-500.0,0.00020998,2]
[321852755,1712565108304,-508.50058439,0.00020998,2]
[321852756,1712565108325,-500.0,0.00020998,2]
[321852757,1712565108346,-547.24726264,0.00020998,2]
[321852758,1712565108368,-516.50427643,0.00020998,2]
[321852759,1712565108389,-644.41312337,0.00020998,2]
[321852760,1712565108410,-500.0,0.00020998,2]
[321852761,1712565108431,-168.75422916,0.00020998,2]
[321852762,1712565108452,-513.09377668,0.00020998,2]
[321852763,1712565108475,-500.0,0.00020998,2]
[321852764,1712565108497,-500.0,0.00020998,2]
[321852765,1712565108518,-296.18784511,0.00020998,2]
[321852766,1712565108539,-209.99236181,0.00020998,2]
[321852767,1712565108560,-41690.07211556,0.00020998,2]
[321852768,1712565108583,-3163.6410231,0.00020998,2]
[321852769,1712565108603,-182.48436504,0.00020998,2]
[321852770,1712565108624,-500.0,0.00020998,2]
[321852771,1712565108645,-500.0,0.00020998,2]
[321852772,1712565108666,-500.0,0.00020998,2]
[321852773,1712565108687,-387.12858189,0.00020998,2]
[321852774,1712565108711,-549.67028095,0.00020998,2]
[321852775,1712565108734,-500.0,0.00020998,2]
[321852776,1712565108756,-500.0,0.00020998,2]
[321852777,1712565108778,-500.0,0.00020998,2]
[321852778,1712565108799,-500.0,0.00020998,2]
[321852779,1712565108821,-630.66,0.00020998,2]
[321852780,1712565108843,-500.0,0.00020998,2]
[321852781,1712565108864,-500.0,0.00020998,2]
[321852782,1712565108886,-1876.17263322,0.00020998,2]
[321852783,1712565108907,-515.15093728,0.00020998,2]
[321852784,1712565108930,-500.0,0.00020998,2]
[321852785,1712565108952,-500.0,0.00020998,2]
[321852786,1712565108973,-248.04,0.00020998,2]
[321852787,1712565108993,-515.28716516,0.00020998,2]
[321852788,1712565109017,-500.0,0.00020998,2]
[321852789,1712565109039,-500.0,0.00020998,2]
[321852790,1712565109060,-500.0,0.00020998,2]
[321852791,1712565109081,-641.65,0.00020998,2]
[321852792,1712565109101,-500.0,0.00020998,2]
[321852793,1712565109122,-500.0,0.00020998,2]
[321852794,1712565109143,-500.0,0.00020998,2]
[321852795,1712565109163,-206.83096015,0.00020998,2]
[321852796,1712565109184,-500.0,0.00020998,2]
[321852797,1712565109205,-500.0,0.00020998,2]
[321852798,1712565109228,-500.0,0.00020998,2]
[321852799,1712565109249,-500.0,0.00020998,2]
[321852800,1712565109271,-500.0,0.00020998,2]
[321852801,1712565109292,-500.0,0.00020998,2]
[321852802,1712565109314,-500.0,0.00020998,2]
[321852803,1712565109338,-500.0,0.00020998,2]
[321852804,1712565109363,-438.92033481,0.00020998,2]
[321852805,1712565109388,-500.0,0.00020998,2]
[321852806,1712565109416,-500.0,0.00020998,2]
[321852807,1712565109440,-500.0,0.00020998,2]
[321852808,1712565109465,-500.0,0.00020998,2]
[321852809,1712565109488,-373.77325472,0.00020998,2]
[321852810,1712565109510,-500.0,0.00020998,2]
[321852811,1712565109532,-624.22352962,0.00020998,2]
[321852812,1712565109554,-500.0,0.00020998,2]
[321852813,1712565109575,-500.0,0.00020998,2]
[321852814,1712565109596,-500.0,0.00020998,2]
[321852815,1712565109619,-500.0,0.00020998,2]
[321852816,1712565109642,-501.74,0.00020998,2]
[321852817,1712565109663,-601.29,0.00020998,2]
[321852818,1712565109684,-505.28752524,0.00020998,2]
[321852819,1712565109705,-500.0,0.00020998,2]
[321852820,1712565109727,-250.10375094,0.00020998,2]
[321852821,1712565109748,-500.0,0.00020998,2]
[321852822,1712565109769,-500.0,0.00020998,2]
[321852823,1712565109790,-500.0,0.00020998,2]
[321852824,1712565109811,-578.0,0.00020998,2]
[321852825,1712565109832,-500.0,0.00020998,2]
[321852826,1712565109852,-500.0,0.00020998,2]
[321852827,1712565109874,-500.0,0.00020998,2]
[321852828,1712565109900,-500.0,0.00020998,2]
[321852829,1712565109923,-500.0,0.00020998,2]
[321852830,1712565109943,-513.20502156,0.00020998,2]
[321852831,1712565109966,-500.0,0.00020998,2]
[321852832,1712565109990,-500.0,0.00020998,2]
[321852833,1712565110011,-612.15428583,0.00020998,2]
[321852834,1712565110033,-500.0,0.00020998,2]
[321852835,1712565110055,-349.47,0.00020998,2]
[321852836,1712565110076,-581.72241709,0.00020998,2]
[321852837,1712565110097,-500.0,0.00020998,2]
[321852838,1712565110118,-453.05,0.00020998,2]
[321852839,1712565110139,-500.0,0.00020998,2]
[321852840,1712565110160,-500.0,0.00020998,2]
[321852841,1712565110181,-500.0,0.00020998,2]
[321852842,1712565110202,-500.0,0.00020998,2]
[321852843,1712565110224,-547.52,0.00020998,2]
[321852844,1712565110246,-500.0,0.00020998,2]
[321852845,1712565110267,-500.0,0.00020998,2]
[321852846,1712565110290,-507.65670992,0.00020998,2]
[321852847,1712565110311,-500.0,0.00020998,2]
[321852848,1712565110333,-500.0,0.00020998,2]
[321852849,1712565110356,-500.0,0.00020998,2]
[321852850,1712565110377,-500.0,0.00020998,2]
[321852851,1712565110398,-500.0,0.00020998,2]
[321852852,1712565110419,-511.23684797,0.00020998,2]
[321852853,1712565110439,-500.0,0.00020998,2]
[321852854,1712565110465,-323.56699177,0.00020998,2]
[321852855,1712565110486,-500.0,0.00020998,2]
[321852856,1712565110506,-500.0,0.00020998,2]
[321852857,1712565110527,-619.72676257,0.00020998,2]
[321852858,1712565110548,-500.0,0.00020998,2]
[321852859,1712565110570,-266.36,0.00020998,2]
[321852860,1712565110592,-312.88,0.00020999,2]
[321852861,1712565110614,-500.0,0.00020999,2]
[321852862,1712565110636,-500.0,0.00020999,2]
[321852863,1712565110660,-500.0,0.00020999,2]
[321852864,1712565110685,-556.8490627,0.00020999,2]
[321852865,1712565110715,-500.0,0.00020999,2]
[321852866,1712565110741,-500.0,0.00020999,2]
[321852867,1712565110767,-508.71,0.00020999,2]
[321852868,1712565110793,-500.0,0.00020999,2]
[321852869,1712565110816,-500.0,0.00020999,2]
[321852870,1712565110839,-500.0,0.00020999,2]
[321852871,1712565110863,-261.5898745,0.00020999,2]
[321852872,1712565110889,-5825.99102334,0.00020999,2]
[321852873,1712565110912,-500.0,0.00020999,2]
[321852874,1712565110934,-255.46844138,0.00020999,2]
[321852875,1712565110956,-182.14154259,0.00020999,2]
[321852876,1712565110982,-500.0,0.00020999,2]
[321852877,1712565111004,-500.0,0.00020999,2]
[321852878,1712565111185,-500.0,0.00020999,2]
[321852879,1712565111208,-500.0,0.00020999,2]
[321852880,1712565111232,-500.0,0.00020999,2]
[321852881,1712565111255,-500.0,0.00020999,2]
[321852882,1712565111277,-196.75,0.00020999,2]
[321852883,1712565111301,-385.03,0.00020999,2]
[321852884,1712565111324,-500.0,0.00020999,2]
[321852885,1712565111347,-595.7000264,0.00020999,2]
[321852886,1712565111369,-595.17106039,0.00020999,2]
[321852887,1712565111392,-500.0,0.00020999,2]
[321852888,1712565111414,-352.44,0.00020999,2]
[321852889,1712565111436,-500.0,0.00020999,2]
[321852890,1712565111458,-500.0,0.00020999,2]
[321852891,1712565111481,-565.72,0.00020999,2]
[321852892,1712565111504,-500.0,0.00020999,2]
[321852893,1712565111527,-500.0,0.00020999,2]
[321852894,1712565111550,-500.0,0.00020999,2]
[321852895,1712565111572,-500.0,0.00020999,2]
[321852896,1712565111596,-500.0,0.00020999,2]
[321852897,1712565111619,-500.0,0.00020999,2]
[321852898,1712565111644,-566.94,0.00020999,2]
[321852899,1712565111666,-495.7,0.00020999,2]
[321852900,1712565111687,-500.0,0.00020999,2]
[321852901,1712565111709,-500.0,0.00020999,2]
[321852902,1712565111733,-500.0,0.00020999,2]
[321852903,1712565111755,-234.33235448,0.00020999,2]
[321852904,1712565111778,-500.0,0.00020999,2]
[321852905,1712565111800,-500.0,0.00020999,2]
[321852906,1712565111822,-500.0,0.00020999,2]
[321852907,1712565111843,-500.0,0.00020999,2]
[321852908,1712565111864,-603.01,0.00020999,2]
[321852909,1712565111889,-500.0,0.00020999,2]
[321852910,1712565111910,-500.0,0.00020999,2]
[321852911,1712565111931,-275.77,0.00020999,2]
[321852912,1712565111952,-500.0,0.00020999,2]
[321852913,1712565111975,-500.0,0.00020999,2]
[321852914,1712565111997,-500.0,0.00020999,2]
[321852915,1712565112019,-500.0,0.00020999,2]
[321852916,1712565112041,-500.0,0.00020999,2]
[321852917,1712565112062,-500.0,0.00020999,2]
[321852918,1712565112083,-500.0,0.00020999,2]
[321852919,1712565112103,-500.0,0.00020999,2]
[321852920,1712565112124,-500.0,0.00020999,2]
[321852921,1712565112145,-500.0,0.00020999,2]
[321852922,1712565112168,-500.0,0.00020999,2]
[321852923,1712565112190,-500.0,0.00020999,2]
[321852924,1712565112213,-500.0,0.00020999,2]
[321852925,1712565112236,-268.98,0.00020999,2]
[321852926,1712565112258,-500.0,0.00020999,2]
[321852927,1712565112281,-500.0,0.00020999,2]
[321852928,1712565112307,-500.0,0.00020999,2]
[321852929,1712565112328,-500.0,0.00020999,2]
[321852930,1712565112349,-500.0,0.00020999,2]
[321852931,1712565112371,-265.69,0.00020999,2]
[321852932,1712565112392,-500.0,0.00020999,2]
[321852933,1712565112415,-364.13502763,0.00020999,2]
[321852934,1712565112437,-500.0,0.00020999,2]
[321852935,1712565112459,-500.0,0.00020999,2]
[321852936,1712565112484,-500.0,0.00020999,2]
[321852937,1712565112506,-531.85773671,0.00020999,2]
[321852938,1712565112529,-500.0,0.00020999,2]
[321852939,1712565112551,-500.0,0.00020999,2]
[321852940,1712565112577,-500.0,0.00020999,2]
[321852941,1712565112600,-500.0,0.00020999,2]
[321852942,1712565112621,-500.0,0.00020999,2]
[321852943,1712565112643,-377.7,0.00020999,2]
[321852944,1712565112665,-500.0,0.00020999,2]
[321852945,1712565112687,-500.0,0.00020999,2]
[321852946,1712565112708,-411.71,0.00020999,2]
[321852947,1712565112732,-500.0,0.00020999,2]
[321852948,1712565112753,-500.0,0.00020999,2]
[321852949,1712565112776,-512.88,0.00020999,2]
[321852950,1712565112798,-500.0,0.00020999,2]
[321852951,1712565112819,-189.48057063,0.00020999,2]
[321852952,1712565112842,-500.0,0.00020999,2]
[321852953,1712565112864,-500.0,0.00020999,2]
[321852954,1712565112891,-500.0,0.00020999,2]
[321852955,1712565112915,-566.21,0.00020999,2]
[321852956,1712565112938,-500.0,0.00020999,2]
[321852957,1712565112962,-500.0,0.00020999,2]
[321852958,1712565112986,-500.0,0.00020999,2]
[321852959,1712565113009,-500.0,0.00020999,2]
[321852960,1712565113031,-500.0,0.00020999,2]
[321852961,1712565113052,-500.0,0.00020999,2]
[321852962,1712565113075,-500.0,0.00020999,2]
[321852963,1712565113097,-500.0,0.00020999,2]
[321852964,1712565113119,-500.0,0.00020999,2]
[321852965,1712565113141,-500.0,0.00020999,2]
[321852966,1712565113164,-500.0,0.00020999,2]
[321852967,1712565113185,-500.0,0.00020999,2]
[321852968,1712565113206,-224.43003581,0.00020999,2]
[321852969,1712565113229,-500.0,0.00020999,2]
[321852970,1712565113250,-205.04,0.00020999,2]
[321852971,1712565113272,-514.19455954,0.00020999,2]
[321852972,1712565113294,-500.0,0.00020999,2]
[321852973,1712565113316,-557.56505488,0.00020999,2]
[321852974,1712565113339,-500.0,0.00020999,2]
[321852975,1712565113363,-458.74,0.00020999,2]
[321852976,1712565113386,-500.0,0.00020999,2]
[321852977,1712565113409,-500.0,0.00020999,2]
[321852978,1712565113432,-500.0,0.00020999,2]
[321852979,1712565113456,-500.0,0.00020999,2]
[321852980,1712565113480,-500.0,0.00020999,2]
[321852981,1712565113502,-530.11,0.00020999,2]
[321852982,1712565113524,-500.0,0.00020999,2]
[321852983,1712565113546,-500.0,0.00020999,2]
[321852984,1712565113567,-500.0,0.00020999,2]
[321852985,1712565113588,-500.0,0.00020999,2]
[321852986,1712565113610,-175.93,0.00020999,2]
[321852987,1712565113631,-500.0,0.00020999,2]
[321852988,1712565113653,-500.0,0.00020999,2]
[321852989,1712565113677,-500.0,0.00020999,2]
[321852990,1712565113701,-500.0,0.00020999,2]
[321852991,1712565113726,-500.0,0.00020999,2]
[321852992,1712565113747,-500.0,0.00020999,2]
[321852993,1712565113770,-500.0,0.00020999,2]
[321852994,1712565113792,-500.0,0.00020999,2]
[321852995,1712565113813,-500.0,0.00020999,2]
[321852996,1712565113835,-559.67,0.00020999,2]
[321852997,1712565113857,-500.0,0.00020999,2]
[321852998,1712565113878,-500.0,0.00020999,2]
[321852999,1712565113901,-500.0,0.00020999,2]
[321853000,1712565113924,-279.93,0.00020999,2]
[321853001,1712565113945,-500.0,0.00020999,2]
[321853002,1712565113970,-500.0,0.00020999,2]
[321853003,1712565113992,-355.87,0.00020999,2]
[321853004,1712565114014,-6112028.08380004,0.00021,2]
[321853005,1712565114035,-15936.68,0.00021,2]
[321853006,1712565114056,-8647173.93583736,0.00021,2]
[321853007,1712565120579,182.23,0.00016754,2]
[321853008,1712565137398,-169.0,0.00020632,2]
[321853009,1712565137420,-171.24106451,0.0002079,2]
[321853010,1712565137442,-1659.75893549,0.000208,2]
[321853011,1712565137729,169.0,0.00027509,120]
[321853012,1712565137892,-2000.0,0.000208,2]
[321853013,1712565138619,-2000.0,0.000208,2]
[321853014,1712565139240,-2000.0,0.000208,2]
[321853015,1712565139853,-2000.0,0.000208,2]
[321853016,1712565140639,-2000.0,0.000208,2]
[321853017,1712565141241,-2000.0,0.000208,2]
[321853018,1712565141855,-2000.0,0.000208,2]
[321853019,1712565147624,-2000.0,0.000208,2]
[321853020,1712565149758,1371.45451449,0.00016754,2]
[321853021,1712565151414,150.0,0.00037619,30]
[321853022,1712565151701,150.0,0.00037619,30]
[321853023,1712565152009,150.0,0.00037619,30]
[321853024,1712565152321,288.799999,0.00037619,30]
[321853025,1712565154934,407.62680589,0.00016754,2]
[321853026,1712565157582,1468.47901264,0.00016754,2]
[321853027,1712565159734,1000.0,0.00037619,30]
[321853028,1712565160193,1000.0,0.00037619,30]
[321853029,1712565160718,1000.0,0.00037619,30]
[321853030,1712565161127,1000.0,0.00037619,30]
[321853031,1712565161554,1000.0,0.00037619,30]
[321853032,1712565161975,1000.0,0.00037619,30]
[321853033,1712565162521,1000.0,0.00037619,30]
[321853034,1712565163034,19633.18645277,0.00016754,2]
[321853035,1712565163241,1000.0,0.00037619,30]
[321853036,1712565163920,1000.0,0.00037619,30]
[321853037,1712565164363,1000.0,0.00037619,30]
[321853038,1712565164944,1000.0,0.00037619,30]
[321853039,1712565165542,1000.0,0.00037619,30]
[321853040,1712565165748,1371.45451449,0.00016754,2]
[321853041,1712565166013,1000.0,0.00037619,30]
[321853042,1712565166646,1000.0,0.00037619,30]
[321853043,1712565167361,1000.0,0.00037619,30]
[321853044,1712565167976,1000.0,0.00037619,30]
[321853045,1712565168671,1000.0,0.00037619,30]
[321853046,1712565168928,407.62680589,0.00016754,2]
[321853047,1712565169206,1000.0,0.00037619,30]
[321853048,1712565169587,1000.0,0.00037619,30]
[321853049,1712565170195,1000.0,0.00037619,30]
[321853050,1712565170742,1000.0,0.00037619,30]
[321853051,1712565171384,1000.0,0.00037619,30]
[321853052,1712565172148,1000.0,0.00037619,30]
[321853053,1712565172741,1000.0,0.00037619,30]
[321853054,1712565173352,1000.0,0.00037619,30]
[321853055,1712565173927,1000.0,0.00037619,30]
[321853056,1712565174847,1000.0,0.00037619,30]
[321853057,1712565175025,1468.47901264,0.00016754,2]
[321853058,1712565175689,1000.0,0.00037619,30]
[321853059,1712565176491,1000.0,0.00037619,30]
[321853060,1712565177101,1000.0,0.00037619,30]
[321853061,1712565177779,1000.0,0.00037619,30]
[321853062,1712565178793,1000.0,0.00037619,30]
[321853063,1712565179031,834.2053958,0.00016754,2]
[321853064,1712565179698,1000.0,0.00037619,30]
[321853065,1712565180139,1000.0,0.00037619,30]
[321853066,1712565181066,1000.0,0.00037619,30]
[321853067,1712565181755,787.72584239,0.00016754,2]
[321853068,1712565181785,1000.0,0.00037619,30]
[321853069,1712565182534,1000.0,0.00037619,30]
[321853070,1712565183159,1000.0,0.00037619,30]
[321853071,1712565183813,1000.0,0.00037619,30]
[321853072,1712565184827,1000.0,0.00037619,30]
[321853073,1712565185560,1000.0,0.00037619,30]
[321853074,1712565186206,1000.0,0.00037619,30]
[321853075,1712565186346,-328.0,0.00020274,2]
[321853076,1712565186377,-152.27,0.00020344,2]
[321853077,1712565186408,-250.0,0.00020406,2]
[321853078,1712565186440,-288.35924873,0.000208,2]
[321853079,1712565186464,-150.0,0.00020895,2]
[321853080,1712565186489,-150.0,0.00020895,2]
[321853081,1712565186518,-681.37075127,0.00020896,2]
[321853082,1712565186869,1000.0,0.00037619,30]
[321853083,1712565186975,-152.27,0.00020415,2]
[321853084,1712565187015,-152.27,0.00020486,2]
[321853085,1712565187050,-152.27,0.00020556,2]
[321853086,1712565187081,-1543.19,0.00020896,2]
[321853087,1712565187300,1000.0,0.00037619,30]
[321853088,1712565187670,-152.27,0.00020627,2]
[321853089,1712565187693,-152.27,0.00020698,2]
[321853090,1712565187714,-152.27,0.00020768,2]
[321853091,1712565187736,-1543.19,0.00020896,2]
[321853092,1712565187958,1000.0,0.00037619,30]
[321853093,1712565188395,-152.27,0.00020839,2]
[321853094,1712565188418,-1847.73,0.00020896,2]
[321853095,1712565188547,1000.0,0.00037619,30]
[321853096,1712565189077,-2000.0,0.00020896,2]
[321853097,1712565189108,1000.0,0.00037619,30]
[321853098,1712565189657,1000.0,0.00037619,30]
[321853099,1712565189769,-500.0,0.00020405,2]
[321853100,1712565189793,-1500.0,0.00020896,2]
[321853101,1712565190108,1000.0,0.00037619,30]
[321853102,1712565190420,-2000.0,0.00020896,2]
[321853103,1712565190818,1000.0,0.00037619,30]
[321853104,1712565191274,-462.37924873,0.00020896,2]
[321853105,1712565191300,-1537.62075127,0.00020897,2]
[321853106,1712565191336,1000.0,0.00037619,30]
[321853107,1712565191911,1000.0,0.00037619,30]
[321853108,1712565192363,1000.0,0.00037619,30]
[321853109,1712565192749,1000.0,0.00037619,30]
[321853110,1712565193324,1000.0,0.00037619,30]
[321853111,1712565193952,1000.0,0.00037619,30]
[321853112,1712565194348,1000.0,0.00037619,30]
[321853113,1712565194576,-2000.0,0.00020627,2]
[321853114,1712565194948,407.62680589,0.00016754,2]
[321853115,1712565194979,1000.0,0.00037619,30]
[321853116,1712565195828,1000.0,0.00037619,30]
[321853117,1712565195927,-2000.0,0.00020627,2]
[321853118,1712565196215,1000.0,0.00037619,30]
[321853119,1712565196695,-2000.0,0.00020627,2]
[321853120,1712565196775,1000.0,0.00037619,30]
[321853121,1712565197116,1468.47901264,0.00016754,2]
[321853122,1712565197171,-2000.0,0.00020627,2]
[321853123,1712565197374,1000.0,0.00037619,30]
[321853124,1712565197718,-2000.0,0.00020627,2]
[321853125,1712565198112,1000.0,0.00037619,30]
[321853126,1712565198310,-2000.0,0.00020627,2]
[321853127,1712565198793,1000.0,0.00037619,30]
[321853128,1712565198881,-2000.0,0.00020627,2]
[321853129,1712565199274,1000.0,0.00037619,30]
[321853130,1712565199825,1000.0,0.00037619,30]
[321853131,1712565200122,-2000.0,0.00020627,2]
[321853132,1712565200239,1000.0,0.00037619,30]
[321853133,1712565200728,-2000.0,0.00020627,2]
[321853134,1712565200857,1000.0,0.00037619,30]
[321853135,1712565201312,1000.0,0.00037619,30]
[321853136,1712565201339,-2000.0,0.00020627,2]
[321853137,1712565201877,-2000.0,0.00020627,2]
[321853138,1712565201908,1000.0,0.00037619,30]
[321853139,1712565202504,-2000.0,0.00020627,2]
[321853140,1712565202548,1000.0,0.00037619,30]
[321853141,1712565203087,1000.0,0.00037619,30]
[321853142,1712565203675,1000.0,0.00037619,30]
[321853143,1712565203742,-2000.0,0.00020627,2]
[321853144,1712565204004,1000.0,0.00037619,30]
[321853145,1712565204344,-2000.0,0.00020627,2]
[321853146,1712565204654,-1800.0,0.00021,3]
[321853147,1712565204815,1000.0,0.00037619,30]
[321853148,1712565205044,-2000.0,0.00020627,2]
[321853149,1712565205391,1000.0,0.00037619,30]
[321853150,1712565205801,-2000.0,0.00020627,2]
[321853151,1712565206708,1000.0,0.00037619,30]
[321853152,1712565207341,1000.0,0.00037619,30]
[321853153,1712565207783,1000.0,0.00037619,30]
[321853154,1712565208241,1000.0,0.00037619,30]
[321853155,1712565208684,1000.0,0.00037619,30]
[321853156,1712565209107,1000.0,0.00037619,30]
[321853157,1712565209604,1000.0,0.00037619,30]
[321853158,1712565210155,1000.0,0.00037619,30]
[321853159,1712565210529,1000.0,0.00037619,30]
[321853160,1712565210936,1000.0,0.00037619,30]
[321853161,1712565211452,1000.0,0.00037619,30]
[321853162,1712565212035,1000.0,0.00037619,30]
[321853163,1712565213639,1000.0,0.00037619,30]
[321853164,1712565214038,1000.0,0.00037619,30]
[321853165,1712565214172,-2000.0,0.00020057,2]
[321853166,1712565214479,1000.0,0.00037619,30]
[321853167,1712565214901,1000.0,0.00037619,30]
[321853168,1712565214951,-2000.0,0.00020057,2]
[321853169,1712565215528,1000.0,0.00037619,30]
[321853170,1712565217060,1000.0,0.00037619,30]
[321853171,1712565217841,1000.0,0.00037619,30]
[321853172,1712565218279,515.0,0.00037619,30]
[321853173,1712565218364,3154.8424851,0.00020732,3]
[321853174,1712565229930,1030.0,0.00037619,30]
[321853175,1712565240477,1030.0,0.00037619,30]
[321853176,1712565242143,-359.67311989,0.00020056,2]
[321853177,1712565242166,-1640.32688011,0.00020057,2]
[321853178,1712565242712,-2000.0,0.00020057,2]
[321853179,1712565243397,-2000.0,0.00020057,2]
[321853180,1712565244055,-359.67311989,0.00020057,2]
[321853181,1712565244075,-291.82859999,0.00020526,2]
[321853182,1712565244098,-160.97033902,0.00020625,2]
[321853183,1712565244119,-1058.17735735,0.00020625,2]
[321853184,1712565244139,-129.35058375,0.00020625,2]
[321853185,1712565244727,-420.330373,0.00020625,2]
[321853186,1712565244748,-624.81043763,0.00020625,2]
[321853187,1712565244768,-203.81818989,0.00020625,2]
[321853188,1712565244788,-376.29834861,0.00020625,2]
[321853189,1712565244810,-155.95222521,0.00020625,2]
[321853190,1712565244832,-155.33359218,0.00020625,2]
[321853191,1712565244857,-63.45683348,0.00020625,2]
[321853192,1712565245466,-2000.0,0.00020056,2]
[321853193,1712565246298,-2000.0,0.00020056,2]
[321853194,1712565250586,-2484.55,0.00019967,2]
[321853195,1712565250612,-23409.79925769,0.00020056,2]
[321853196,1712565250637,-92.02902749,0.00020625,2]
[321853197,1712565250662,-266.33427453,0.00020625,2]
[321853198,1712565250691,-355.17490237,0.00020625,2]
[321853199,1712565250715,-4395.89511718,0.00020625,2]
[321853200,1712565250738,-257.69323348,0.00020625,2]
[321853201,1712565250762,-2994.02422326,0.00020625,2]
[321853202,1712565250785,-260.08259237,0.00020625,2]
[321853203,1712565250809,-280.25086343,0.00020625,2]
[321853204,1712565250832,-1240.13796248,0.00020625,2]
[321853205,1712565250856,-562.45212725,0.00020625,2]
[321853206,1712565250879,-155.0,0.00020625,2]
[321853207,1712565250903,-245.08709582,0.00020625,2]
[321853208,1712565250929,-155.21459238,0.00020625,2]
[321853209,1712565250953,-155.0751412,0.00020625,2]
[321853210,1712565250977,-362.61366894,0.00020625,2]
[321853211,1712565251001,-321.51134969,0.00020625,2]
[321853212,1712565251025,-155.0,0.00020625,2]
[321853213,1712565251050,-500.0,0.00020626,2]
[321853214,1712565251074,-54490.19282459,0.00020626,2]
[321853215,1712565251098,-201907.03926075,0.00020627,2]
[321853216,1712565251150,1030.0,0.00037619,30]
[321853217,1712565252803,-1946.38168202,0.00020625,2]
[321853218,1712565252825,-53.61831798,0.00020625,2]
[321853219,1712565253281,-107.9883944,0.00020625,2]
[321853220,1712565253303,-326.13639391,0.00020625,2]